bitfinex/quotes_BTCUSD_20230120
["timestamp","ask_amount","ask_price","bid_price","bid_amount"]
[1674198118299,0.00980901,20948.0,20947.0,2.66112122]
[1674198121417,0.00980901,20948.0,20947.0,2.66113122]
[1674198121686,0.00980901,20948.0,20947.0,2.30990269]
[1674198121962,0.00980901,20948.0,20947.0,2.96810631]
[1674198122226,0.00980901,20948.0,20947.0,3.13930225]
[1674198123044,0.00980901,20948.0,20947.0,3.13945401]
[1674198123529,0.00980901,20948.0,20947.0,3.56901609]
[1674198123532,0.00980901,20948.0,20947.0,3.13945967]
[1674198124055,0.00980901,20948.0,20947.0,3.02517162]
[1674198124315,0.00980901,20948.0,20947.0,3.25343287]
[1674198124574,0.00980901,20948.0,20947.0,3.13948039]
[1674198124849,0.00980901,20948.0,20947.0,3.02517162]
[1674198125075,0.00980901,20948.0,20947.0,3.25343287]
[1674198126384,0.00980901,20948.0,20947.0,3.08223693]
[1674198126628,0.00980901,20948.0,20947.0,3.25373031]
[1674198127187,0.00980901,20948.0,20947.0,3.08223693]
[1674198127457,0.00980901,20948.0,20947.0,3.36787579]
[1674198128015,0.00980901,20948.0,20947.0,3.36787543]
[1674198128273,0.00980901,20948.0,20947.0,3.13922597]
[1674198128831,0.00980901,20948.0,20947.0,3.76887362]
[1674198129085,0.00980901,20948.0,20947.0,3.36792063]
[1674198129603,0.00980901,20948.0,20947.0,3.36777221]
[1674198130179,0.00980901,20948.0,20947.0,3.50520525]
[1674198130754,0.00980901,20948.0,20947.0,3.36777034]
[1674198131019,0.00980901,20948.0,20947.0,3.76603658]
[1674198131285,0.00980901,20948.0,20947.0,3.36777034]
[1674198131557,0.00980901,20948.0,20947.0,3.13907755]
[1674198132088,0.00280901,20948.0,20947.0,3.36081405]
[1674198132343,0.00280901,20948.0,20947.0,3.21807755]
[1674198132834,0.00280901,20948.0,20947.0,3.04565098]
[1674198133375,0.00280901,20948.0,20947.0,3.33160675]
[1674198133671,0.00280901,20948.0,20947.0,3.04565098]
[1674198134996,0.00280901,20948.0,20947.0,3.33156762]
[1674198135224,0.00280901,20948.0,20947.0,3.3315669]
[1674198135502,0.00280901,20948.0,20947.0,3.04565098]
[1674198137029,0.00280901,20948.0,20947.0,3.23505573]
[1674198137291,0.00280901,20948.0,20947.0,3.15955098]
[1674198137788,0.00280901,20948.0,20947.0,3.66165098]
[1674198138317,0.00280901,20948.0,20947.0,3.67015098]
[1674198138548,0.00280901,20948.0,20947.0,3.76785098]
[1674198140987,0.00292442,20949.0,20947.0,3.76785098]
[1674198140988,0.00292442,20949.0,20948.0,0.1]
[1674198141242,0.00292442,20949.0,20948.0,3.19623968]
[1674198141782,0.00292442,20949.0,20948.0,2.91047268]
[1674198142311,0.00292442,20949.0,20948.0,2.91897268]
[1674198142575,0.00292442,20949.0,20948.0,3.20468005]
[1674198143026,0.00292442,20949.0,20948.0,2.91897268]
[1674198143027,0.00292442,20949.0,20948.0,3.44331976]
[1674198143571,0.00292442,20949.0,20948.0,3.24461268]
[1674198143826,0.00292442,20949.0,20948.0,3.54838375]
[1674198146646,0.00292442,20949.0,20948.0,3.54844375]
[1674198149424,0.00292442,20949.0,20948.0,3.76833629]
[1674198150176,0.00292442,20949.0,20948.0,3.53994375]
[1674198151729,0.00292442,20949.0,20948.0,3.53988375]
[1674198152703,0.00292442,20949.0,20948.0,3.53962549]
[1674198152959,0.00292442,20949.0,20948.0,3.90857329]
[1674198154185,0.00292442,20949.0,20948.0,3.53962549]
[1674198154449,0.00292442,20949.0,20948.0,3.53970356]
[1674198154982,0.00292442,20949.0,20948.0,3.80414901]
[1674198155544,0.00292442,20949.0,20948.0,3.57570356]
[1674198155759,0.00292442,20949.0,20948.0,3.29017664]
[1674198156030,0.00292442,20949.0,20948.0,3.57571096]
[1674198159213,0.00292442,20949.0,20948.0,3.29017664]
[1674198160534,0.00292442,20949.0,20948.0,3.36400863]
[1674198160802,0.00292442,20949.0,20948.0,3.36400434]
[1674198161047,0.00292442,20949.0,20948.0,3.7068742]
[1674198161817,0.00292442,20949.0,20948.0,3.29017664]
[1674198164119,0.00284502,20949.0,20948.0,3.29017664]
[1674198164362,0.00284502,20949.0,20948.0,3.69176036]
[1674198164668,0.00284502,20949.0,20948.0,3.65674723]
[1674198165084,0.00284502,20949.0,20948.0,3.49191609]
[1674198165338,0.00284502,20949.0,20948.0,3.82333772]
[1674198166105,0.00284502,20949.0,20948.0,3.49191609]
[1674198166386,0.00284502,20949.0,20948.0,3.80462465]
[1674198166659,0.00284502,20949.0,20948.0,3.90149731]
[1674198167163,0.00284502,20949.0,20948.0,3.90150731]
[1674198167398,0.00284502,20949.0,20948.0,3.49192609]
[1674198167881,0.00284502,20949.0,20948.0,3.80463465]
[1674198168110,0.00284502,20949.0,20948.0,3.57597938]
[1674198169688,0.00284502,20949.0,20948.0,3.70621541]
[1674198169924,0.00284502,20949.0,20948.0,4.48040606]
[1674198170181,0.00284502,20949.0,20948.0,3.70621541]
[1674198170968,0.00284502,20949.0,20948.0,4.48026451]
[1674198171211,0.00284502,20949.0,20948.0,4.16931541]
[1674198171986,0.00284502,20949.0,20948.0,4.94331236]
[1674198172741,0.00645773,20953.0,20948.0,5.76213333]
[1674198173033,0.00645773,20953.0,20952.0,0.7516709]
[1674198173262,0.00645773,20953.0,20952.0,3.90660009]
[1674198173564,0.00645773,20953.0,20952.0,4.02498768]
[1674198173788,0.00645773,20953.0,20952.0,4.06098768]
[1674198174326,0.00645773,20953.0,20952.0,4.34660406]
[1674198174593,0.00645773,20953.0,20952.0,4.12679839]
[1674198175621,0.00645773,20953.0,20952.0,4.26809922]
[1674198175877,0.00645773,20953.0,20952.0,5.01659933]
[1674198176139,0.00645773,20953.0,20952.0,4.58969175]
[1674198176392,0.00645773,20953.0,20952.0,4.36118021]
[1674198176654,0.00645773,20953.0,20952.0,4.47545028]
[1674198176901,0.00645773,20953.0,20952.0,4.58975175]
[1674198177404,0.00645773,20953.0,20952.0,4.73104295]
[1674198177659,0.00645773,20953.0,20952.0,4.70668394]
[1674198177894,0.00645773,20953.0,20952.0,4.99230032]
[1674198178166,0.00645773,20953.0,20952.0,4.33683636]
[1674198178420,0.00645773,20953.0,20952.0,4.45108261]
[1674198178938,0.00645773,20953.0,20952.0,4.43953174]
[1674198179192,0.00645773,20953.0,20952.0,4.78529867]
[1674198179466,0.00645773,20953.0,20952.0,4.26815922]
[1674198179731,0.00645773,20953.0,20952.0,4.12681552]
[1674198180045,0.00645773,20953.0,20952.0,4.26815922]
[1674198180308,0.00645773,20953.0,20952.0,4.43949617]
[1674198180862,0.00645773,20953.0,20952.0,4.32526406]
[1674198181608,0.00645773,20953.0,20952.0,4.03964768]
[1674198181894,0.00645773,20953.0,20952.0,4.03958768]
[1674198182162,0.00645773,20953.0,20952.0,4.32513749]
[1674198182967,0.00645773,20953.0,20952.0,4.43813749]
[1674198183221,0.00645773,20953.0,20952.0,4.66658416]
[1674198183511,0.00645773,20953.0,20952.0,4.43813749]
[1674198184846,0.00645773,20953.0,20952.0,4.66652203]
[1674198185098,0.00645773,20953.0,20952.0,4.37690433]
[1674198185387,0.00645773,20953.0,20952.0,4.03427567]
[1674198185900,0.00645773,20953.0,20952.0,3.97719852]
[1674198186688,0.00645773,20953.0,20952.0,3.93163555]
[1674198187536,0.00645773,20953.0,20952.0,3.28000555]
[1674198188092,0.00645773,20953.0,20952.0,3.83968682]
[1674198188342,0.00645773,20953.0,20952.0,3.63287409]
[1674198188891,0.00645773,20953.0,20952.0,3.93287409]
[1674198189447,0.00645773,20953.0,20952.0,4.14050993]
[1674198190808,0.00635258,20953.0,20952.0,3.84050993]
[1674198191064,0.00635258,20953.0,20952.0,2.95131655]
[1674198194763,0.12025258,20953.0,20952.0,1.082562]
[1674198194978,0.7375531,20953.0,20952.0,0.605281]
[1674198195507,0.7375531,20953.0,20952.0,0.513281]
[1674198195772,0.7385531,20953.0,20952.0,0.597281]
[1674198196838,0.55813058,20953.0,20952.0,0.513281]
[1674198197057,0.75559275,20953.0,20952.0,0.036]
[1674198197390,0.96941184,20953.0,20952.0,0.036]
[1674198197611,0.97041184,20953.0,20952.0,0.121]
[1674198197867,0.85659275,20953.0,20952.0,0.121]
[1674198200186,0.74289275,20953.0,20952.0,0.121]
[1674198200747,0.64289275,20953.0,20952.0,0.121]
[1674198204645,0.12125258,20953.0,20952.0,0.598281]
[1674198204873,0.12125258,20953.0,20952.0,1.43818772]
[1674198205386,0.12125258,20953.0,20952.0,1.67681772]
[1674198207169,0.12125258,20953.0,20952.0,1.43818772]
[1674198209005,0.12125258,20953.0,20952.0,1.075562]
[1674198209262,0.33153058,20953.0,20952.0,1.075562]
[1674198209525,0.54570078,20953.0,20952.0,1.075562]
[1674198213028,0.33542278,20953.0,20952.0,1.075562]
[1674198214336,0.12125258,20953.0,20952.0,1.075562]
[1674198215918,0.51337284,20953.0,20952.0,1.075562]
[1674198218341,0.51337284,20953.0,20952.0,0.121]
[1674198218850,0.30309484,20953.0,20952.0,0.121]
[1674198222457,0.12125258,20953.0,20952.0,1.04585836]
[1674198225931,0.12125258,20953.0,20952.0,1.05920045]
[1674198225932,0.33153058,20953.0,20952.0,1.05920045]
[1674198226209,0.12125258,20953.0,20952.0,1.05920045]
[1674198226998,0.33153058,20953.0,20952.0,1.05920045]
[1674198227252,0.12125258,20953.0,20952.0,1.05920045]
[1674198229553,0.12125258,20953.0,20952.0,1.53648145]
[1674198231664,0.12125258,20953.0,20952.0,1.86299645]
[1674198232441,0.12125258,20953.0,20952.0,1.53648145]
[1674198232745,0.12125258,20953.0,20952.0,1.85381645]
[1674198232991,0.00728527,20953.0,20952.0,2.35050311]
[1674198234173,0.00728527,20953.0,20952.0,1.88344078]
[1674198234396,0.00728527,20953.0,20952.0,2.18344078]
[1674198234628,0.00728527,20953.0,20952.0,2.49614934]
[1674198235936,0.00728527,20953.0,20952.0,2.72374934]
[1674198236856,0.00728527,20953.0,20952.0,3.12085119]
[1674198237073,0.00728527,20953.0,20952.0,2.72374934]
[1674198238229,0.00728527,20953.0,20952.0,2.83520633]
[1674198238755,0.00728527,20953.0,20952.0,2.72374934]
[1674198241110,0.00728527,20953.0,20952.0,2.98862248]
[1674198241363,0.00728527,20953.0,20952.0,2.83797788]
[1674198242406,0.00728527,20953.0,20952.0,2.72374934]
[1674198242661,0.00728527,20953.0,20952.0,2.83797788]
[1674198242944,0.00728527,20953.0,20952.0,2.72374934]
[1674198243247,0.00728527,20953.0,20952.0,2.83797788]
[1674198244073,0.00728527,20953.0,20952.0,3.11444006]
[1674198245639,0.00728527,20953.0,20952.0,2.81444006]
[1674198245893,0.00728527,20953.0,20952.0,2.3878315]
[1674198246676,0.00728527,20953.0,20952.0,2.6878315]
[1674198246979,0.00728527,20953.0,20952.0,2.6264715]
[1674198247191,0.00728527,20953.0,20952.0,2.9264715]
[1674198248001,0.00728527,20953.0,20952.0,2.6264715]
[1674198248527,0.00728527,20953.0,20952.0,3.23918006]
[1674198249842,0.00728527,20953.0,20952.0,2.84848934]
[1674198250124,0.00728527,20953.0,20952.0,3.27870302]
[1674198250630,0.00728527,20953.0,20952.0,2.84848934]
[1674198250902,0.00728527,20953.0,20952.0,3.29428931]
[1674198252366,0.00728527,20953.0,20952.0,3.29427931]
[1674198252878,0.00728527,20953.0,20952.0,2.84847934]
[1674198253390,0.00728527,20953.0,20952.0,3.19838441]
[1674198254672,0.00718788,20953.0,20952.0,3.19838441]
[1674198255438,0.00718788,20953.0,20952.0,2.84847934]
[1674198256225,0.00718788,20953.0,20952.0,2.95544664]
[1674198256500,0.00718788,20953.0,20952.0,2.64273808]
[1674198256762,0.00718788,20953.0,20952.0,2.94273808]
[1674198257576,0.00718788,20953.0,20952.0,2.40410808]
[1674198257802,0.00718788,20953.0,20952.0,2.08677308]
[1674198258378,0.00718788,20953.0,20952.0,2.40572208]
[1674198260726,0.00718788,20953.0,20952.0,2.41531208]
[1674198262043,0.00718788,20953.0,20952.0,2.41525169]
[1674198262298,0.11725862,20957.0,20953.0,0.1]
[1674198262575,0.32830954,20957.0,20954.0,1.431693]
[1674198262832,0.32830954,20957.0,20954.0,1.62601397]
[1674198263376,0.32830954,20957.0,20954.0,1.467693]
[1674198263930,0.18762017,20956.0,20954.0,1.467693]
[1674198264415,0.18762017,20956.0,20954.0,1.474693]
[1674198264681,0.18762017,20956.0,20954.0,1.467693]
[1674198264919,0.18762017,20956.0,20954.0,1.86471923]
[1674198264920,0.19462017,20956.0,20954.0,1.86471923]
[1674198265190,0.007,20956.0,20954.0,1.86471923]
[1674198266013,0.007,20956.0,20954.0,1.86477923]
[1674198266246,0.007,20956.0,20955.0,0.1]
[1674198266550,0.007,20956.0,20955.0,1.054426]
[1674198267102,0.007,20956.0,20955.0,1.090426]
[1674198267616,0.45838715,20957.0,20955.0,1.090426]
[1674198267896,0.007,20956.0,20955.0,1.097426]
[1674198268167,0.12081909,20956.0,20955.0,1.097426]
[1674198268428,0.007,20956.0,20955.0,0.997426]
[1674198270320,0.12081909,20956.0,20955.0,0.997426]
[1674198272460,0.33109709,20956.0,20955.0,0.997486]
[1674198273301,0.12081909,20956.0,20955.0,0.997486]
[1674198273569,0.33109709,20956.0,20955.0,0.997486]
[1674198274970,0.6160348,20956.0,20955.0,0.997486]
[1674198274973,0.12146549,20956.0,20955.0,0.997486]
[1674198275493,0.007,20956.0,20955.0,0.997486]
[1674198277285,0.007,20956.0,20955.0,0.997426]
[1674198277535,0.007,20956.0,20955.0,0.99732522]
[1674198277804,0.12146549,20956.0,20955.0,0.99732522]
[1674198278094,0.29234386,20956.0,20955.0,0.99732522]
[1674198278374,0.50262186,20956.0,20955.0,0.99732522]
[1674198278668,0.47762186,20956.0,20955.0,0.99732522]
[1674198278903,0.26734386,20956.0,20955.0,0.99732522]
[1674198279428,0.09646549,20956.0,20955.0,0.99732522]
[1674198280583,0.51544643,20957.0,20955.0,0.99732522]
[1674198281114,0.74332486,20957.0,20955.0,0.99732522]
[1674198281663,0.51544643,20957.0,20955.0,0.99732522]
[1674198281922,0.210278,20956.0,20955.0,0.99732522]
[1674198282187,0.51544643,20957.0,20955.0,0.99032522]
[1674198282441,0.51544643,20957.0,20955.0,1.33292315]
[1674198282712,0.210278,20956.0,20955.0,1.33292315]
[1674198282954,0.74332486,20957.0,20955.0,1.33292315]
[1674198283739,0.210278,20956.0,20955.0,1.34092315]
[1674198283976,0.74432486,20957.0,20955.0,1.34092315]
[1674198284478,0.210278,20956.0,20955.0,1.34092315]
[1674198284746,0.74432486,20957.0,20955.0,1.34092315]
[1674198285264,0.28913699,20957.0,20956.0,0.41132114]
[1674198285506,0.28913699,20957.0,20956.0,0.98851114]
[1674198285764,0.11825862,20957.0,20956.0,0.98851114]
[1674198286333,0.11825862,20957.0,20956.0,1.02451114]
[1674198286761,0.11725862,20957.0,20956.0,0.92451114]
[1674198287770,0.11825862,20957.0,20956.0,0.93251114]
[1674198288263,0.28913699,20957.0,20956.0,0.93251114]
[1674198288522,0.23271177,20957.0,20956.0,1.40970114]
[1674198288767,0.11825862,20957.0,20956.0,1.40970114]
[1674198289300,0.11825862,20957.0,20956.0,1.40976114]
[1674198289547,0.23271177,20957.0,20956.0,1.40976114]
[1674198290874,0.11951177,20957.0,20956.0,1.40976114]
[1674198291386,0.23341177,20957.0,20956.0,1.40976114]
[1674198292933,0.11951177,20957.0,20956.0,1.40976114]
[1674198293179,0.00505862,20957.0,20956.0,1.40976114]
[1674198294467,0.00505862,20957.0,20956.0,1.40970114]
[1674198300799,0.00505862,20957.0,20956.0,0.99838]
[1674198301051,0.67419959,20957.0,20956.0,0.99838]
[1674198301828,0.55974644,20957.0,20956.0,0.99838]
[1674198302064,0.78762487,20957.0,20956.0,0.99866587]
[1674198302325,0.55974644,20957.0,20956.0,0.99838]
[1674198302597,0.78762487,20957.0,20956.0,0.99838]
[1674198302854,0.55974644,20957.0,20956.0,0.99838]
[1674198303118,0.11948843,20957.0,20956.0,0.99838]
[1674198303364,0.00505862,20957.0,20956.0,0.99838]
[1674198303620,0.11948843,20957.0,20956.0,0.99838]
[1674198303883,0.11948843,20957.0,20956.0,1.46769497]
[1674198304154,0.00505862,20957.0,20956.0,1.46769497]
[1674198306198,0.00505862,20957.0,20956.0,0.99838]
[1674198306438,0.17703605,20957.0,20956.0,0.99838]
[1674198307211,0.50174386,20957.0,20956.0,0.99838]
[1674198307474,0.67262223,20957.0,20956.0,0.99838]
[1674198308276,2.51451953,20957.0,20956.0,0.87425588]
[1674198308509,2.51549553,20957.0,20956.0,0.91025588]
[1674198308768,2.2866411,20957.0,20956.0,0.43306588]
[1674198309027,0.90159924,20957.0,20956.0,0.43306588]
[1674198309318,2.24724821,20957.0,20956.0,0.43306588]
[1674198310259,0.90149948,20957.0,20956.0,0.43306588]
[1674198311046,2.57943711,20957.0,20956.0,0.036]
[1674198311307,2.85443798,20957.0,20956.0,0.036]
[1674198312078,2.68134806,20957.0,20956.0,0.036]
[1674198312316,2.86228119,20957.0,20956.0,0.036]
[1674198312833,3.14816996,20957.0,20956.0,0.036]
[1674198313346,2.12237488,20957.0,20956.0,0.036]
[1674198313607,2.12234191,20957.0,20956.0,0.036]
[1674198314134,1.50129917,20957.0,20956.0,0.036]
[1674198315764,1.83555659,20957.0,20956.0,0.036]
[1674198316051,2.12144536,20957.0,20956.0,0.036]
[1674198317107,1.32980118,20957.0,20956.0,0.036]
[1674198317370,1.50127662,20957.0,20956.0,0.036]
[1674198317892,1.38692183,20957.0,20956.0,0.036]
[1674198319209,1.21544639,20957.0,20956.0,0.036]
[1674198319472,1.38692183,20957.0,20956.0,0.036]
[1674198319997,1.27261219,20957.0,20956.0,0.036]
[1674198320762,0.90975205,20957.0,20956.0,0.036]
[1674198321115,0.90975059,20957.0,20956.0,0.036]
[1674198321282,0.79585059,20957.0,20956.0,0.036]
[1674198321525,0.91020962,20957.0,20956.0,0.036]
[1674198323272,0.7958493,20957.0,20956.0,0.036]
[1674198323756,0.55780105,20957.0,20956.0,0.036]
[1674198324016,2.55223228,20957.0,20956.0,0.036]
[1674198324274,2.55223108,20957.0,20956.0,0.036]
[1674198325563,2.85224046,20957.0,20956.0,0.036]
[1674198326117,1.54013152,20957.0,20956.0,0.036]
[1674198326344,0.74734409,20957.0,20956.0,0.036]
[1674198326850,1.04734409,20957.0,20956.0,0.036]
[1674198327103,1.8397497,20957.0,20956.0,0.036]
[1674198327616,1.25386093,20957.0,20956.0,0.036]
[1674198327879,1.04734409,20957.0,20956.0,0.036]
[1674198328132,1.0473309,20957.0,20956.0,0.036]
[1674198328397,1.21875751,20957.0,20956.0,0.036]
[1674198328720,1.21875761,20957.0,20956.0,0.036]
[1674198329418,1.2187587,20957.0,20956.0,0.036]
[1674198329663,1.0473309,20957.0,20956.0,0.036]
[1674198329924,0.91875778,20957.0,20956.0,0.036]
[1674198330182,0.69018787,20957.0,20956.0,0.036]
[1674198330434,0.80447048,20957.0,20956.0,0.036]
[1674198330691,0.69067048,20957.0,20956.0,0.036]
[1674198330942,0.80495778,20957.0,20956.0,0.03591008]
[1674198331261,0.57638787,20957.0,20956.0,0.03591008]
[1674198331464,0.51924035,20957.0,20956.0,0.03591008]
[1674198331955,0.69066723,20957.0,20956.0,0.03591008]
[1674198333028,0.80346723,20957.0,20956.0,0.03591008]
[1674198333582,0.68918787,20957.0,20956.0,0.03591008]
[1674198333853,1.50437732,20957.0,20956.0,0.03591008]
[1674198334131,1.21848855,20957.0,20956.0,0.03591008]
[1674198334382,0.7463309,20957.0,20956.0,0.03591008]
[1674198335468,0.91778794,20957.0,20956.0,0.03591008]
[1674198335702,0.7463309,20957.0,20956.0,0.03591008]
[1674198336279,0.80353181,20957.0,20956.0,0.03591008]
[1674198337761,0.91779339,20957.0,20956.0,0.03591008]
[1674198338280,0.68922348,20957.0,20956.0,0.03591008]
[1674198338504,0.80354352,20957.0,20956.0,0.03591008]
[1674198344463,0.68922348,20957.0,20956.0,0.03591008]
[1674198344469,0.803593,20957.0,20956.0,0.03591008]
[1674198344738,0.68922348,20957.0,20956.0,0.03591008]
[1674198345381,0.91779339,20957.0,20956.0,0.03591008]
[1674198349060,0.91779339,20957.0,20956.0,1e-08]
[1674198349061,2.46032183,20957.0,20956.0,1e-08]
[1674198349321,2.46032183,20957.0,20955.0,6e-05]
[1674198349584,0.11442672,20956.0,20955.0,6e-05]
[1674198349844,0.32470472,20956.0,20955.0,6e-05]
[1674198350635,0.29406667,20956.0,20955.0,0.00706]
[1674198350889,0.50434467,20956.0,20955.0,0.00706]
[1674198351663,0.29406667,20956.0,20955.0,0.10706]
[1674198352015,0.12242672,20956.0,20955.0,0.10706]
[1674198352954,0.008,20956.0,20955.0,0.10706]
[1674198354203,0.12242672,20956.0,20955.0,0.10706]
[1674198354457,0.008,20956.0,20955.0,0.10706]
[1674198358156,0.12242672,20956.0,20955.0,0.00706]
[1674198358682,0.008,20956.0,20955.0,0.10706]
[1674198360510,0.007627,20956.0,20955.0,0.107]
[1674198360761,0.007627,20956.0,20955.0,0.007]
[1674198364220,0.12205372,20956.0,20955.0,0.007]
[1674198364781,0.33233172,20956.0,20955.0,0.007]
[1674198365036,0.12205372,20956.0,20955.0,0.007]
[1674198367230,0.007627,20956.0,20955.0,0.007]
[1674198369002,0.00705266,20956.0,20955.0,0.007]
[1674198369285,0.12147938,20956.0,20955.0,0.007]
[1674198370572,0.00705266,20956.0,20955.0,0.007]
[1674198371331,0.29311933,20956.0,20955.0,0.007]
[1674198371621,0.12147938,20956.0,20955.0,0.007]
[1674198372647,0.12110638,20956.0,20955.0,0.007]
[1674198373678,0.00667966,20956.0,20955.0,0.007]
[1674198374956,0.12110638,20956.0,20955.0,0.007]
[1674198375826,0.29274633,20956.0,20955.0,0.007]
[1674198376322,0.50302433,20956.0,20955.0,0.007]
[1674198376876,0.48907213,20956.0,20955.0,0.007]
[1674198377162,1.59635268,20956.0,20955.0,0.007]
[1674198377436,0.64185337,20956.0,20955.0,0.007]
[1674198377696,2.08936838,20956.0,20955.0,0.007]
[1674198378250,0.81380747,20956.0,20955.0,0.007]
[1674198380843,0.58493545,20956.0,20955.0,0.007]
[1674198381320,0.81380747,20956.0,20955.0,0.007]
[1674198382113,0.50302047,20956.0,20955.0,0.12065815]
[1674198382392,0.12109048,20956.0,20955.0,0.12065815]
[1674198383432,0.12109048,20956.0,20955.0,0.00727815]
[1674198384463,0.00667966,20956.0,20955.0,0.00727815]
[1674198387366,0.00667966,20956.0,20955.0,0.007]
[1674198387367,0.97315148,20956.0,20955.0,0.007]
[1674198387639,1.08342948,20956.0,20955.0,0.007]
[1674198387894,2.70188105,20956.0,20955.0,0.007]
[1674198388454,1.19784947,20956.0,20955.0,0.007]
[1674198389911,2.15240012,20956.0,20955.0,0.007]
[1674198390173,2.47302524,20956.0,20955.0,0.007]
[1674198390424,1.19776562,20956.0,20955.0,0.007]
[1674198393900,1.19776562,20956.0,20955.0,0.00688673]
[1674198394736,3.00218255,20956.0,20955.0,0.00688673]
[1674198394969,2.70218255,20956.0,20955.0,0.00688673]
[1674198395242,2.48719369,20956.0,20955.0,0.00688673]
[1674198396034,2.77311451,20956.0,20955.0,0.00688673]
[1674198396252,2.77311412,20956.0,20955.0,0.00688673]
[1674198396507,2.70184525,20956.0,20955.0,0.00688673]
[1674198396776,3.00184525,20956.0,20955.0,0.00688673]
[1674198397041,1.74730363,20956.0,20955.0,0.00688673]
[1674198397296,1.4613832,20956.0,20955.0,0.00688673]
[1674198397566,1.74730363,20956.0,20955.0,0.00688673]
[1674198397828,1.74764002,20956.0,20955.0,0.03255947]
[1674198398136,2.7734592,20956.0,20955.0,0.03255947]
[1674198398433,2.7734592,20956.0,20954.0,6e-05]
[1674198398434,0.0266928,20954.0,20952.0,0.477266]
[1674198398917,0.11437125,20953.0,20952.0,0.477266]
[1674198398919,0.22827125,20953.0,20951.0,0.477287]
[1674198399193,0.11437609,20952.0,20951.0,0.477287]
[1674198399448,0.32465409,20952.0,20951.0,0.477287]
[1674198399684,0.210278,20952.0,20951.0,0.477287]
[1674198399903,0.32465409,20952.0,20951.0,0.477287]
[1674198400463,0.210278,20952.0,20951.0,0.477287]
[1674198401001,0.32465409,20952.0,20951.0,0.477287]
[1674198401256,0.53826844,20952.0,20951.0,0.079]
[1674198401514,1.2477144,20952.0,20949.0,0.477342]
[1674198401737,0.8282568,20952.0,20951.0,0.079]
[1674198401996,0.76702392,20952.0,20951.0,0.079]
[1674198402576,0.9375808,20952.0,20949.0,0.477342]
[1674198402771,0.7273028,20952.0,20949.0,0.477342]
[1674198403036,0.323778,20951.0,20949.0,0.477342]
[1674198403295,0.1135,20951.0,20949.0,0.477342]
[1674198403561,0.38928323,20950.0,20949.0,0.477342]
[1674198404379,0.38928323,20950.0,20949.0,0.549342]
[1674198404652,0.38928323,20950.0,20948.0,0.477364]
[1674198404920,0.18100523,20950.0,20949.0,0.073]
[1674198405181,0.39128323,20950.0,20949.0,0.073]
[1674198405718,0.38928323,20950.0,20947.0,0.86185538]
[1674198405982,0.17900523,20950.0,20947.0,0.96185538]
[1674198406210,0.210278,20949.0,20947.0,0.49060609]
[1674198406561,0.88963267,20950.0,20947.0,0.12711509]
[1674198406814,0.210278,20949.0,20947.0,0.12711509]
[1674198407060,1.2526471,20950.0,20947.0,0.12711509]
[1674198407283,0.210278,20949.0,20947.0,0.12711509]
[1674198407542,1.2526321,20950.0,20947.0,0.19911509]
[1674198407799,0.210278,20949.0,20947.0,0.12711509]
[1674198408053,0.002,20949.0,20947.0,0.20011509]
[1674198408320,0.210278,20948.0,20947.0,0.20039334]
[1674198408581,0.002,20949.0,20947.0,0.20011509]
[1674198408845,0.23713701,20949.0,20947.0,0.30011509]
[1674198409868,0.002,20949.0,20948.0,0.37175165]
[1674198410127,0.68825988,20952.0,20948.0,1.17672365]
[1674198410359,0.68825988,20952.0,20949.0,0.1136]
[1674198410653,0.68825988,20952.0,20950.0,0.1]
[1674198410942,0.21096088,20952.0,20950.0,0.1]
[1674198411199,0.47728,20953.0,20949.0,0.40792097]
[1674198411200,0.18364109,20951.0,20949.0,0.40792097]
[1674198411454,0.59161157,20953.0,20949.0,0.40792097]
[1674198411455,0.02,20952.0,20949.0,0.2136]
[1674198411708,0.19895488,20952.0,20949.0,0.2136]
[1674198411981,0.21895488,20952.0,20950.0,0.006]
[1674198412252,0.21895488,20952.0,20949.0,0.2136]
[1674198412979,0.21895488,20952.0,20950.0,0.38699332]
[1674198413222,0.02,20951.0,20950.0,0.38699332]
[1674198413980,0.19895488,20952.0,20950.0,0.38699332]
[1674198414235,0.21895488,20952.0,20950.0,0.39299332]
[1674198414752,0.19895488,20952.0,20950.0,0.39299332]
[1674198415005,0.19895488,20952.0,20950.0,0.38699332]
[1674198415006,0.02,20951.0,20950.0,0.38699332]
[1674198416809,0.02,20951.0,20950.0,0.39299332]
[1674198417071,0.19895488,20952.0,20950.0,0.38699332]
[1674198417326,0.02,20951.0,20950.0,0.39299332]
[1674198418679,0.02,20951.0,20950.0,0.39290268]
[1674198421042,0.02,20951.0,20950.0,0.006]
[1674198421299,0.43713229,20951.0,20950.0,0.006]
[1674198422897,0.22685429,20951.0,20950.0,0.006]
[1674198423155,0.43713229,20951.0,20950.0,0.006]
[1674198425784,0.6864,20951.0,20950.0,0.006]
[1674198426331,1.23511357,20951.0,20950.0,0.006]
[1674198426616,2.18274392,20951.0,20950.0,0.006]
[1674198426884,1.95380176,20951.0,20950.0,0.006]
[1674198427160,1.76944322,20951.0,20950.0,0.006]
[1674198427415,1.99818572,20951.0,20950.0,0.006]
[1674198427684,2.33344481,20951.0,20950.0,0.006]
[1674198427957,2.5212555,20951.0,20950.0,0.006]
[1674198428496,2.292513,20951.0,20950.0,0.006]
[1674198428976,1.65725391,20951.0,20950.0,0.006]
[1674198428979,1.77149863,20951.0,20950.0,0.006]
[1674198429263,1.88599641,20951.0,20950.0,0.006]
[1674198429776,2.07149917,20951.0,20950.0,0.006]
[1674198430102,1.95725391,20951.0,20950.0,0.006]
[1674198430299,2.73666297,20951.0,20950.0,0.006]
[1674198430566,3.15138994,20951.0,20950.0,0.006]
[1674198431078,4.10619577,20951.0,20950.0,0.006]
[1674198431345,3.87745327,20951.0,20950.0,0.006]
[1674198431841,2.42916516,20951.0,20950.0,0.006]
[1674198432094,2.24135447,20951.0,20950.0,0.006]
[1674198432370,3.69406089,20951.0,20950.0,0.006]
[1674198432645,3.69381793,20951.0,20950.0,0.006]
[1674198433167,3.72997496,20951.0,20950.0,0.006]
[1674198433432,3.21574296,20951.0,20950.0,0.006]
[1674198433694,3.50143277,20951.0,20950.0,0.006]
[1674198433973,3.50151834,20951.0,20950.0,0.006]
[1674198435002,3.27860683,20951.0,20950.0,0.006]
[1674198435336,3.17393343,20951.0,20950.0,0.006]
[1674198435823,3.4596835,20951.0,20950.0,0.006]
[1674198436614,3.87678867,20951.0,20950.0,0.006]
[1674198437146,3.69568669,20951.0,20950.0,0.006]
[1674198437647,3.40993662,20951.0,20950.0,0.006]